bitfinex-derivatives/quotes_BTCF0:USTF0_20250505
["timestamp","ask_amount","ask_price","bid_price","bid_amount"]
[1746407379164,0.002,94481.0,94480.0,0.3316744]
[1746407380258,0.08063949,94487.0,94485.0,0.2116632]
[1746407380465,0.08063949,94487.0,94485.0,0.2773032]
[1746407381058,0.08063949,94487.0,94485.0,0.3973032]
[1746407381761,0.08063949,94487.0,94485.0,0.4599032]
[1746407382171,0.08063949,94487.0,94486.0,0.2116609]
[1746407382364,0.08063949,94487.0,94486.0,0.2744609]
[1746407383059,0.08063949,94487.0,94486.0,0.3944609]
[1746407383257,0.08063949,94494.0,94493.0,0.2116453]
[1746407383460,0.26063949,94494.0,94493.0,0.2116453]
[1746407383862,0.26063949,94494.0,94493.0,0.2746453]
[1746407384169,0.02929489,94494.0,94493.0,0.7554453]
[1746407384364,0.02929489,94494.0,94493.0,0.8612733]
[1746407385568,0.03129489,94494.0,94493.0,0.8612733]
[1746407387170,0.002,94494.0,94493.0,0.8612733]
[1746407387563,1e-07,94494.0,94493.0,0.8612733]
[1746407389172,0.3608,94502.0,94501.0,0.2116273]
[1746407389472,0.3608,94502.0,94501.0,0.2772273]
[1746407390064,0.3608,94502.0,94501.0,0.3400273]
[1746407390372,0.3608,94502.0,94501.0,0.4600273]
[1746407390773,0.3608,94502.0,94501.0,0.4610273]
[1746407390976,0.0662,94512.0,94505.0,0.2116184]
[1746407391175,0.3608,94528.0,94512.0,0.2116027]
[1746407391374,0.0652,94519.0,94512.0,0.2116027]
[1746407392069,0.0652,94519.0,94512.0,0.2757027]
[1746407392276,0.0652,94519.0,94512.0,0.50151069]
[1746407392865,0.0652,94519.0,94518.0,0.2115893]
[1746407393066,0.1352,94519.0,94518.0,0.3971893]
[1746407393769,0.1352,94519.0,94518.0,0.4290893]
[1746407395477,0.1382,94519.0,94518.0,0.4290893]
[1746407398378,0.1362,94519.0,94518.0,0.4290893]
[1746407399278,1.218587,94519.0,94518.0,0.1856]
[1746407399471,1.218587,94519.0,94518.0,0.3971893]
[1746407401676,1.219587,94519.0,94518.0,0.3971893]
[1746407412088,1.008,94519.0,94518.0,0.3971893]
[1746407412482,0.648,94519.0,94518.0,0.3971893]
[1746407414290,0.869587,94519.0,94518.0,0.3971893]
[1746407414478,0.868587,94519.0,94518.0,0.3971893]
[1746407415183,0.867587,94519.0,94518.0,0.3971893]
[1746407415382,0.869587,94519.0,94518.0,0.3971893]
[1746407417794,0.709587,94519.0,94518.0,0.3971893]
[1746407419783,0.639587,94519.0,94518.0,0.3971893]
[1746407419983,0.2116139,94507.0,94506.0,0.06532]
[1746407420201,0.6724139,94507.0,94506.0,0.18532]
[1746407420392,1.3982259,94507.0,94506.0,0.12]
[1746407421295,0.2106251,94502.0,94501.0,0.2116264]
[1746407421590,1.1014251,94502.0,94501.0,0.2116264]
[1746407422295,0.2116318,94500.0,94499.0,0.2116313]
[1746407422599,0.9116318,94500.0,94499.0,0.2116313]
[1746407422890,0.9745318,94500.0,94499.0,0.2116313]
[1746407423089,0.5945318,94500.0,94499.0,0.2116313]
[1746407423292,0.5945318,94500.0,94499.0,0.2421313]
[1746407423884,0.3829,94500.0,94499.0,0.2421313]
[1746407424088,0.3829,94500.0,94499.0,0.3621313]
[1746407424687,0.3849,94500.0,94499.0,0.3621313]
[1746407424886,0.5965296,94500.0,94499.0,0.3621313]
[1746407426601,0.5965296,94500.0,94499.0,0.3938313]
[1746407427199,0.3541,94500.0,94499.0,0.3938313]
[1746407427703,0.322,94500.0,94499.0,0.3938313]
[1746407432400,0.002,94500.0,94499.0,0.3938313]
[1746407434301,0.002,94500.0,94499.0,0.7546313]
[1746407437894,0.012,94500.0,94499.0,0.7546313]
[1746407439806,0.012,94500.0,94499.0,0.7229313]
[1746407440799,0.012,94500.0,94499.0,0.7558313]
[1746407442906,0.012,94500.0,94499.0,0.3950313]
[1746407447108,0.1075813,94512.0,94499.0,0.28922]
[1746407447411,0.1375813,94512.0,94511.0,0.2116049]
[1746407447610,0.1375813,94512.0,94511.0,0.2769249]
[1746407448208,0.1375813,94512.0,94511.0,0.4615249]
[1746407449713,0.1395813,94512.0,94511.0,0.4615249]
[1746407451013,0.032,94512.0,94511.0,0.4615249]
[1746407451212,0.002,94512.0,94511.0,0.4615249]
[1746407455508,0.0643,94512.0,94511.0,0.4615249]
[1746407456013,0.0643,94512.0,94511.0,0.3962049]
[1746407456216,0.0743,94512.0,94511.0,0.4615249]
[1746407473539,0.0623,94512.0,94511.0,0.4615249]
[1746407473730,0.0328,94512.0,94511.0,0.4615249]
[1746407474340,0.0308,94512.0,94511.0,0.4615249]
[1746407474637,0.0328,94512.0,94511.0,0.4615249]
[1746407475135,0.0015,94520.0,94519.0,0.211587]
[1746407475337,0.0015,94520.0,94519.0,0.572387]
[1746407476128,0.0115,94520.0,94519.0,0.692387]
[1746407477038,0.0145,94520.0,94519.0,0.692387]
[1746407479439,0.0025,94520.0,94519.0,0.692387]
[1746407483137,0.0025,94520.0,94519.0,0.757347]
[1746407485633,0.0357,94520.0,94519.0,0.757347]
[1746407485939,0.15286418,107230.0,94536.0,0.211549]
[1746407485940,1e-08,94537.0,94536.0,0.211549]
[1746407486141,0.24140756,94565.0,94544.0,0.2115311]
[1746407486142,0.0329,94545.0,94544.0,0.2115311]
[1746407486341,0.0529,94545.0,94544.0,1.7115311]
[1746407486540,0.0832,94545.0,94544.0,1.7115311]
[1746407486940,0.0832,94545.0,94544.0,0.2115311]
[1746407487144,0.0832,94545.0,94544.0,0.3315311]
[1746407488142,0.0832,94545.0,94544.0,0.6923311]
[1746407489149,0.0842,94545.0,94544.0,0.6923311]
[1746407492842,0.0842,94545.0,94544.0,0.3315311]
[1746407493249,0.0842,94545.0,94544.0,0.3964511]
[1746407493450,0.0842,94545.0,94544.0,0.3315311]
[1746407493648,0.445,94545.0,94544.0,0.3315311]
[1746407493948,0.445,94545.0,94544.0,0.3964511]
[1746407494153,0.445,94545.0,94544.0,0.2764511]
[1746407494354,0.0842,94545.0,94544.0,0.2764511]
[1746407495055,0.0842,94545.0,94544.0,0.3964511]
[1746407505864,0.6565289,94545.0,94544.0,0.3964511]
[1746407506256,0.6565289,94545.0,94544.0,0.1818311]
[1746407506455,0.0529245,94470.0,94438.0,0.0332]
[1746407506653,0.9333013,94468.0,94449.0,0.0332]
[1746407506850,1.5433013,94468.0,94467.0,5e-08]
[1746407507164,2.0191573,94468.0,94467.0,5e-08]
[1746407507862,1.7691573,94468.0,94467.0,5e-08]
[1746407508057,1.7691573,94468.0,94467.0,0.01500005]
[1746407508464,1.7798155,94468.0,94467.0,0.01500005]
[1746407508863,1.7798155,94468.0,94467.0,0.00100005]
[1746407510167,1.6598155,94468.0,94467.0,0.00100005]
[1746407510369,1.66773153,94468.0,94467.0,0.00100005]
[1746407510975,0.0529346,94452.0,94423.0,0.05295]
[1746407511160,0.9333506,94446.0,94445.0,1e-08]
[1746407511369,1.6233506,94446.0,94445.0,1e-08]
[1746407511566,1.7292306,94446.0,94445.0,1e-08]
[1746407512265,0.2117797,94433.0,94426.0,0.06864]
[1746407512465,1.2825797,94433.0,94426.0,0.06864]
[1746407514068,1.2805797,94433.0,94426.0,0.06864]
[1746407514269,0.9505797,94433.0,94426.0,0.06864]
[1746407515676,0.9505797,94433.0,94432.0,0.38876816]
[1746407515975,0.7408,94433.0,94432.0,0.60055016]
[1746407516176,0.7408,94433.0,94432.0,0.72055016]
[1746407516874,0.7408,94433.0,94432.0,0.75125016]
[1746407517065,0.7408,94433.0,94432.0,0.78375016]
[1746407520774,0.9525797,94433.0,94432.0,0.78375016]
[1746407522476,0.7408,94433.0,94432.0,0.78375016]
[1746407522976,0.9525797,94433.0,94432.0,0.78375016]
[1746407526584,0.9525797,94433.0,94432.0,0.18478844]
[1746407526878,0.9525797,94433.0,94432.0,0.39657044]
[1746407532975,0.9525797,94433.0,94432.0,0.18478844]
[1746407533177,0.9525797,94433.0,94432.0,0.06478844]
[1746407535084,1.0584757,94433.0,94432.0,0.06478844]
[1746407536382,1.0584757,94433.0,94432.0,0.03228844]
[1746407538478,1.13843061,94433.0,94432.0,0.03228844]
[1746407539486,0.2118156,94417.0,94409.0,0.06784]
[1746407539675,1.0734156,94417.0,94416.0,0.0619]
[1746407539877,1.1793276,94417.0,94416.0,0.0619]
[1746407540477,1.18715042,94417.0,94416.0,0.0619]
[1746407540787,1.18715042,94417.0,94416.0,0.0639]
[1746407540992,1.04715042,94417.0,94416.0,0.0639]
[1746407541290,1.53715042,94417.0,94416.0,0.0639]
[1746407542084,1.54751134,94417.0,94416.0,0.0639]
[1746407542585,1.54751134,94417.0,94416.0,0.0972]
[1746407543183,1.57831134,94417.0,94416.0,0.0972]
[1746407545190,1.57831134,94417.0,94416.0,0.2172]
[1746407546092,1.47239934,94417.0,94416.0,0.0972]
[1746407546793,1.43123842,94417.0,94416.0,0.69619762]
[1746407547186,1.43123842,94417.0,94416.0,0.81619762]
[1746407548793,0.76942282,94417.0,94416.0,0.81619762]
[1746407549594,0.7216,94417.0,94416.0,1.06619762]
[1746407549895,0.7216,94417.0,94416.0,0.81619762]
[1746407554200,0.07995491,94426.0,94425.0,0.2117977]
[1746407554399,0.33995491,94426.0,94425.0,0.66681742]
[1746407554601,0.26,94426.0,94425.0,0.66681742]
[1746407555098,0.26,94426.0,94425.0,0.85121742]
[1746407555403,0.26,94426.0,94425.0,0.85221742]
[1746407561103,0.07995491,94436.0,94435.0,0.2117752]
[1746407561309,0.03005491,94436.0,94435.0,0.59895492]
[1746407561609,0.3608,94445.0,94443.0,0.2117573]
[1746407561808,0.3608,94445.0,94443.0,2.16677702]
[1746407562201,0.3608,94445.0,94443.0,2.28677702]
[1746407563008,0.11027466,94444.0,94443.0,2.28677702]
[1746407563801,0.003,94444.0,94443.0,2.28677702]
[1746407564609,0.3608,94445.0,94444.0,0.2117551]
[1746407564799,0.3708,94445.0,94444.0,0.59893482]
[1746407565110,0.3708,94445.0,94444.0,0.78063482]
[1746407567802,0.3738,94445.0,94444.0,0.78063482]
[1746407574310,0.3638,94445.0,94444.0,0.78063482]
[1746407576418,0.003,94445.0,94444.0,0.78063482]
[1746407580216,0.3608,94446.0,94445.0,0.2117528]
[1746407580516,0.3608,94446.0,94445.0,0.59893252]
[1746407580723,0.3608,94446.0,94445.0,0.66393252]
[1746407581216,0.3608,94446.0,94445.0,0.78393252]
[1746407581521,0.3708,94446.0,94445.0,0.78393252]
[1746407582318,0.3608,94446.0,94445.0,0.78393252]
[1746407583109,0.00955113,94450.0,94445.0,0.57217972]
[1746407583311,0.00955113,94450.0,94449.0,0.59892362]
[1746407583510,0.3608,94457.0,94456.0,0.2117282]
[1746407583816,0.10727466,94458.0,94457.0,0.2117259]
[1746407584015,0.10727466,94458.0,94457.0,0.69350562]
[1746407584215,0.10727466,94458.0,94457.0,2.31350562]
[1746407584421,0.0328,94475.0,94468.0,0.2117013]
[1746407584612,0.4508,94469.0,94468.0,0.59888102]
[1746407584811,0.4508,94469.0,94468.0,0.4232413]
[1746407585214,0.4508,94469.0,94468.0,0.6085413]
[1746407586718,0.4538,94469.0,94468.0,0.6085413]
[1746407587324,0.4508,94469.0,94468.0,0.6085413]
[1746407587620,0.4538,94469.0,94468.0,0.78418102]
[1746407588012,0.13259755,94481.0,94473.0,0.0529221]
[1746407588325,6e-08,94481.0,94480.0,0.95965412]
[1746407588513,6e-08,94481.0,94480.0,1.07965412]
[1746407588818,6e-08,94481.0,94480.0,1.18549412]
[1746407589025,6e-08,94481.0,94480.0,2.74919412]
[1746407589217,6e-08,94485.0,94484.0,0.59884512]
[1746407589411,0.103197,94491.0,94490.0,0.211652]
[1746407589616,0.103197,94491.0,94490.0,1.02663172]
[1746407590223,0.103197,94491.0,94490.0,1.21033172]
[1746407590524,0.464997,94506.0,94505.0,0.2116184]
[1746407590724,0.804997,94506.0,94505.0,0.2786184]
[1746407590924,0.81284045,94506.0,94505.0,0.2786184]
[1746407591129,0.81284045,94506.0,94505.0,0.3986184]
[1746407591723,0.81284045,94506.0,94505.0,0.4307184]
[1746407591915,0.804997,94506.0,94505.0,0.4307184]
[1746407592321,0.804997,94506.0,94505.0,0.81789812]
[1746407592929,0.806997,94506.0,94505.0,0.81789812]
[1746407593628,0.804997,94506.0,94505.0,0.81789812]
[1746407593829,0.806997,94506.0,94505.0,0.81789812]
[1746407594220,0.7038,94506.0,94505.0,0.81789812]
[1746407595026,0.7038,94506.0,94505.0,1.17869812]
[1746407595027,0.343,94506.0,94505.0,1.17869812]
[1746407595224,0.2361073,94506.0,94505.0,1.17869812]
[1746407595426,1e-07,94506.0,94505.0,1.17869812]
[1746407596330,1e-07,94506.0,94505.0,1.28451011]
[1746407596530,1e-07,94506.0,94505.0,1.29072051]
[1746407597031,1e-07,94506.0,94505.0,2.79072051]
[1746407598723,0.3608,94531.0,94519.0,0.59876672]
[1746407598724,1e-07,94520.0,94519.0,0.59876672]
[1746407598933,1e-07,94520.0,94519.0,0.66576672]
[1746407599130,1e-07,94520.0,94519.0,0.78576672]
[1746407599631,1e-07,94520.0,94519.0,0.84896672]
[1746407600135,0.3608,94531.0,94530.0,0.2115624]
[1746407600436,0.6308,94531.0,94530.0,0.2115624]
[1746407601133,0.27,94531.0,94530.0,0.3951624]
[1746407602238,0.272,94531.0,94530.0,0.3951624]
[1746407609148,0.6328,94531.0,94530.0,0.3648624]
[1746407609352,1.2043602,94531.0,94530.0,0.18648]
[1746407609653,1.2043602,94531.0,94530.0,0.3980424]
[1746407609851,0.4728,94531.0,94530.0,0.3980424]
[1746407610450,0.4728,94531.0,94530.0,0.4311424]
[1746407612557,0.4728,94531.0,94530.0,0.3980424]
[1746407613057,0.6843602,94531.0,94530.0,0.3980424]
[1746407613256,0.7901442,94531.0,94530.0,0.3315624]
[1746407613462,1.1601442,94531.0,94530.0,0.3980424]
[1746407613657,1.4101442,94531.0,94530.0,0.12]
[1746407614259,0.2644607,94529.0,94528.0,0.2115662]
[1746407614453,0.7544607,94529.0,94528.0,0.2115662]
[1746407614648,1.1723487,94529.0,94528.0,0.2115662]
[1746407614854,0.8694571,94529.0,94528.0,0.2115662]
[1746407615356,0.8714571,94529.0,94528.0,0.2115662]
[1746407617158,0.8714571,94529.0,94528.0,0.3315662]
[1746407617460,0.8714571,94529.0,94528.0,0.12]
[1746407618160,0.2115669,94528.0,94527.0,0.06648]
[1746407618461,1.3781549,94528.0,94527.0,0.06648]
[1746407618661,1.4384549,94528.0,94527.0,0.06648]
[1746407619361,1.4394549,94528.0,94527.0,0.06648]
[1746407620463,1.4923949,94528.0,94527.0,0.06648]
[1746407621364,1.4933949,94528.0,94527.0,0.06648]
[1746407621565,0.0528928,94526.0,94520.0,0.03]
[1746407621864,0.3608,94521.0,94520.0,0.09648]
[1746407622061,0.7908,94521.0,94520.0,0.21648]
[1746407622764,1.0023826,94521.0,94520.0,0.4280601]
[1746407624066,1.0023826,94521.0,94520.0,0.3615801]
[1746407624259,1.0023826,94521.0,94520.0,0.4280601]
[1746407624562,1.0043826,94521.0,94520.0,0.4280601]
[1746407627471,1.04811728,94521.0,94520.0,0.4280601]
[1746407628964,1.04811728,94521.0,94520.0,0.12]
[1746407630173,0.2644915,94518.0,94517.0,0.0528978]
[1746407630367,0.9144915,94518.0,94517.0,0.2644893]
[1746407630571,0.5044915,94518.0,94517.0,0.2644893]
[1746407630768,0.24,94518.0,94517.0,0.47182902]
[1746407630968,0.24,94518.0,94517.0,0.50372902]
[1746407631168,0.4515893,94518.0,94517.0,0.62372902]
[1746407631373,0.4535893,94518.0,94517.0,0.62372902]
[1746407631769,0.242,94518.0,94517.0,0.62372902]
[1746407633371,0.24,94518.0,94517.0,0.62372902]
[1746407633570,0.242,94518.0,94517.0,0.62372902]
[1746407635076,0.242,94518.0,94517.0,0.83526902]
[1746407637789,0.4535893,94518.0,94517.0,0.83526902]
[1746407639477,0.4515893,94518.0,94517.0,0.83526902]
[1746407639679,0.4525893,94518.0,94517.0,0.83526902]
[1746407642972,0.241,94518.0,94517.0,0.83526902]
[1746407643280,0.4525893,94518.0,94517.0,0.83526902]
[1746407643668,0.241,94518.0,94517.0,0.83526902]
[1746407644079,0.4525893,94518.0,94517.0,0.83526902]
[1746407645080,0.241,94518.0,94517.0,0.83526902]
[1746407646482,0.04377588,94529.0,94528.0,0.59874662]
[1746407646688,0.001,94536.0,94535.0,0.2115512]
[1746407646982,0.001,94536.0,94535.0,0.59873092]
[1746407647183,0.001,94536.0,94535.0,0.71873092]
[1746407647682,0.03846513,94538.0,94537.0,0.59872652]
[1746407647883,0.03846513,94538.0,94537.0,0.95952652]
[1746407648076,0.03846513,94538.0,94537.0,1.07952652]
[1746407648278,0.00968763,94538.0,94537.0,1.07952652]
[1746407648474,3e-08,94538.0,94537.0,1.07952652]
[1746407649183,3e-08,94538.0,94537.0,1.08663651]
[1746407649876,0.3608,94551.0,94550.0,0.2115177]
[1746407650076,0.3608,94551.0,94550.0,0.78477742]
[1746407650077,0.6708,94551.0,94550.0,0.78477742]
[1746407650378,0.6708,94551.0,94550.0,0.6091377]
[1746407650781,0.6708,94551.0,94550.0,0.6718377]
[1746407651780,0.6708,94551.0,94550.0,0.84747742]
[1746407652185,0.6718,94551.0,94550.0,0.84747742]
[1746407653386,0.6718,94551.0,94550.0,0.4602977]
[1746407653977,0.6718,94551.0,94550.0,0.84747742]
[1746407659485,0.6718,94551.0,94550.0,0.6718377]
[1746407659691,0.6718,94551.0,94550.0,0.84747742]
[1746407662283,0.6718,94551.0,94550.0,0.81667742]
[1746407663785,0.6718,94551.0,94550.0,0.81663742]
[1746407666394,0.311,94551.0,94550.0,0.81663742]
[1746407676190,0.6718,94551.0,94550.0,0.81663742]
[1746407676796,0.6718,94551.0,94550.0,0.6409977]
[1746407682098,0.6718,94551.0,94550.0,0.1519]
[1746407682297,0.6718,94551.0,94543.0,0.2775668]
[1746407682298,0.2115311,94544.0,94543.0,0.2775668]
[1746407682495,0.2115311,94544.0,94524.0,0.52235072]
[1746407682496,0.2115736,94525.0,94524.0,0.16155072]
[1746407682807,0.7308,94525.0,94524.0,0.43916652]
[1746407683300,0.7308,94525.0,94524.0,0.49312652]
[1746407683500,0.7308,94525.0,94524.0,0.55916652]
[1746407683800,0.7308,94525.0,94524.0,0.56316652]
[1746407684400,0.9423736,94525.0,94524.0,0.56316652]
[1746407684701,0.9423736,94525.0,94524.0,0.55916652]
[1746407685401,0.9423736,94525.0,94524.0,0.4292158]
[1746407685791,1.0057736,94525.0,94524.0,0.4292158]
[1746407686995,1.0057736,94525.0,94524.0,0.3976158]
[1746407687996,0.7942,94525.0,94524.0,0.3976158]
[1746407688590,0.7942,94525.0,94524.0,0.4590158]
[1746407689290,0.87463802,94525.0,94524.0,0.4590158]
[1746407691196,0.51383802,94525.0,94524.0,0.4590158]
[1746407691499,0.87463802,94525.0,94524.0,0.4590158]
[1746407692602,0.7942,94525.0,94524.0,0.4590158]
[1746407693005,0.4334,94525.0,94524.0,0.4590158]
[1746407693205,0.7942,94525.0,94524.0,0.4590158]
[1746407694904,0.37,94525.0,94524.0,0.84619552]
[1746407699805,0.37,94525.0,94524.0,2.34619552]
[1746407700016,0.37,94525.0,94524.0,0.84619552]
[1746407701104,0.3608,94538.0,94524.0,0.84619552]
[1746407701105,0.3608,94538.0,94531.0,0.0528896]
[1746407701303,0.3608,94538.0,94537.0,0.59872652]
[1746407701514,0.3608,94538.0,94537.0,0.66448652]
[1746407701715,0.3708,94538.0,94537.0,0.66448652]
[1746407702013,0.01,94538.0,94537.0,0.66448652]
[1746407702205,0.01,94538.0,94537.0,0.84788652]
[1746407702810,0.011,94538.0,94537.0,0.84788652]
[1746407707913,0.01,94538.0,94537.0,0.84788652]
[1746407708119,0.01,94538.0,94537.0,0.84888652]
[1746407710715,0.3608,94547.0,94546.0,0.2115266]
[1746407710909,0.4708,94547.0,94546.0,0.4230666]
[1746407711105,0.4708,94547.0,94546.0,0.71870632]
[1746407711511,0.4708,94547.0,94546.0,0.78410632]
[1746407712015,0.4124425,94547.0,94546.0,0.78410632]
[1746407712314,0.08043802,94551.0,94550.0,0.2115177]
[1746407712505,0.14043802,94551.0,94550.0,0.66445742]
[1746407713113,0.14043802,94551.0,94550.0,0.78445742]
[1746407719224,0.0258433,94551.0,94550.0,0.78445742]
[1746407719421,0.0328,94554.0,94553.0,0.211511]
[1746407719621,0.1228,94554.0,94553.0,0.423051]
[1746407720123,0.1228,94554.0,94553.0,0.543051]
[1746407720336,0.0727311,94554.0,94553.0,0.543051]
[1746407720527,2e-08,94560.0,94559.0,0.59867722]
[1746407721018,2e-08,94560.0,94559.0,2.09867722]
[1746407721327,2e-08,94560.0,94559.0,2.28347722]
[1746407722620,2e-08,94560.0,94559.0,2.1078375]
[1746407722825,2e-08,94560.0,94559.0,2.28347722]
[1746407727229,2e-08,94560.0,94559.0,2.28447722]
[1746407727629,0.3915,94565.0,94564.0,0.2114863]
[1746407727839,0.4615,94565.0,94564.0,0.2770463]
[1746407728224,0.4615,94565.0,94564.0,0.4596463]
[1746407737335,0.07214199,94570.0,94565.0,0.2114841]
[1746407737536,0.121,94566.0,94565.0,0.2114841]
[1746407737741,0.121,94566.0,94565.0,0.2732841]
[1746407738037,0.121,94566.0,94565.0,0.4848241]
[1746407738335,0.121,94566.0,94565.0,0.6048241]
[1746407740733,0.121,94566.0,94565.0,0.78046382]
[1746407741033,0.22806741,94566.0,94565.0,0.78046382]
[1746407743536,0.22806741,94566.0,94565.0,0.84602382]
[1746407746636,0.23206741,94566.0,94565.0,0.84602382]
[1746407746836,0.125,94566.0,94565.0,0.84602382]
[1746407747232,0.0237005,94566.0,94565.0,0.84602382]
[1746407747535,0.032,94575.0,94574.0,0.211464]
[1746407747732,0.242,94575.0,94574.0,0.572264]
[1746407748137,0.242,94575.0,94574.0,0.692264]
[1746407749939,0.242,94575.0,94574.0,0.693264]
[1746407750245,0.246,94575.0,94574.0,0.693264]
[1746407750632,0.242,94575.0,94574.0,0.693264]
[1746407752140,0.242,94575.0,94574.0,0.692264]
[1746407753651,0.244,94575.0,94574.0,0.692264]
[1746407754240,0.49480825,94592.0,94587.0,0.2114349]
[1746407754548,0.7214334,94588.0,94587.0,0.2767949]
[1746407754746,0.8271574,94588.0,94587.0,0.2767949]
[1746407755144,0.8271574,94588.0,94587.0,0.3967949]
[1746407755648,0.615724,94588.0,94587.0,0.3967949]
[1746407756240,0.615724,94588.0,94587.0,0.2767949]
[1746407756538,0.619724,94588.0,94587.0,0.2767949]
[1746407757044,0.514,94588.0,94587.0,0.2767949]
[1746407757246,0.514,94588.0,94587.0,0.3967949]
[1746407757442,0.5775,94588.0,94587.0,0.3967949]
[1746407757839,0.58129298,94588.0,94587.0,0.3967949]
[1746407758039,0.58429298,94588.0,94587.0,0.3967949]
[1746407758244,0.58429298,94588.0,94587.0,0.2767949]
[1746407759449,0.58529298,94588.0,94587.0,0.2767949]
[1746407760151,0.58529298,94588.0,94587.0,0.3967949]
[1746407760452,0.58129298,94588.0,94587.0,0.3967949]
[1746407760753,0.58529298,94588.0,94587.0,0.3967949]
[1746407760940,0.004,94588.0,94587.0,0.3967949]
[1746407761150,0.0528554,94593.0,94592.0,0.2642748]
[1746407761348,0.7628554,94593.0,94592.0,0.2642748]
[1746407761543,0.8685714,94593.0,94592.0,0.2642748]
[1746407761745,0.8685714,94593.0,94592.0,0.2971748]
[1746407762351,0.33500268,94593.0,94592.0,0.2971748]
[1746407762554,0.8091375,94593.0,94592.0,0.2971748]
[1746407763145,0.8121375,94593.0,94592.0,0.2971748]
[1746407763656,0.8649929,94593.0,94592.0,0.2971748]
[1746407763856,0.335716,94593.0,94592.0,0.2971748]
[1746407764155,0.775716,94593.0,94592.0,0.2971748]
[1746407764656,1.0399929,94593.0,94592.0,0.2971748]
[1746407764849,0.1468089,94593.0,94592.0,0.2971748]
[1746407765043,0.1968089,94593.0,94592.0,0.2971748]
[1746407765247,0.8168089,94593.0,94592.0,0.2971748]
[1746407765448,1.0282304,94593.0,94592.0,0.2443193]
[1746407765648,1.03631512,94593.0,94592.0,0.2443193]
[1746407765859,1.08001839,94593.0,94592.0,0.2443193]
[1746407766150,0.23573439,94593.0,94592.0,0.3643193]
[1746407766453,0.85573439,94593.0,94592.0,0.3643193]
[1746407766654,1.06715589,94593.0,94592.0,0.3643193]
[1746407767257,0.11715589,94593.0,94592.0,0.3643193]
[1746407767554,0.50715589,94593.0,94592.0,0.3953193]
[1746407767751,0.77143279,94593.0,94592.0,0.3953193]
[1746407770857,0.77943262,94593.0,94592.0,0.3953193]
[1746407771057,0.72657722,94593.0,94592.0,0.3953193]
[1746407774062,0.65942133,94593.0,94592.0,0.3953193]
[1746407778356,0.65942133,94593.0,94592.0,0.1839]
[1746407778666,0.0528597,94586.0,94578.0,0.3608]
[1746407778958,0.6428597,94586.0,94578.0,0.3608]
[1746407779162,0.7628597,94586.0,94578.0,0.3608]
[1746407779955,0.7628597,94586.0,94573.0,0.0301]
[1746407780361,0.0528624,94581.0,94578.0,0.001]
[1746407780661,0.7728624,94581.0,94578.0,0.001]
[1746407780859,0.2114528,94579.0,94578.0,0.001]
[1746407781055,0.211464,94574.0,94573.0,0.2761661]
[1746407781259,0.861464,94574.0,94573.0,0.3081661]
[1746407781561,0.96720001,94574.0,94573.0,0.3081661]
[1746407781753,0.96720001,94574.0,94573.0,0.3061661]
[1746407781954,0.96720001,94574.0,94573.0,0.3071661]
[1746407782464,0.96720001,94574.0,94573.0,0.3061661]
[1746407782845,0.75573601,94574.0,94573.0,0.3061661]
[1746407783048,0.2642966,94586.0,94585.0,0.2642916]
[1746407783246,0.9014372,94586.0,94585.0,0.6779505]
[1746407783453,0.9014372,94586.0,94585.0,0.85359022]
[1746407784262,0.9014372,94586.0,94585.0,0.97359022]
[1746407785160,0.9034372,94586.0,94585.0,0.97359022]
[1746407786452,0.9034372,94586.0,94585.0,0.92073132]
[1746407787959,0.9034372,94586.0,94585.0,0.86787242]
[1746407788263,0.2414372,94586.0,94585.0,0.6922377]
[1746407788565,0.9214372,94586.0,94585.0,0.6922377]
[1746407788956,0.9214372,94586.0,94585.0,0.7858377]
[1746407789156,0.9234372,94586.0,94585.0,0.7858377]
[1746407789562,0.0291525,94590.0,94585.0,0.7858377]
[1746407789860,0.2114372,94586.0,94585.0,0.7858377]
[1746407790062,0.8014372,94586.0,94585.0,0.7858377]
[1746407790260,0.9071612,94586.0,94585.0,0.7858377]
[1746407790662,0.9071612,94586.0,94585.0,0.5744]
[1746407790856,0.9071612,94586.0,94585.0,0.1822]
[1746407791053,0.3414372,94586.0,94585.0,0.1509]
[1746407791260,0.7914372,94586.0,94585.0,0.0309]
[1746407791961,0.7924372,94586.0,94585.0,0.0309]
[1746407793668,0.34904413,94594.0,94585.0,0.0309]
[1746407793863,0.05294,94593.0,94586.0,0.0311]
[1746407794164,0.70094655,94593.0,94586.0,0.0311]
[1746407794358,0.0528582,94588.0,94587.0,0.0307]
[1746407794559,0.6428582,94588.0,94587.0,0.0613]
[1746407795562,0.6967982,94588.0,94587.0,0.0613]
[1746407795764,0.9082309,94588.0,94587.0,0.0613]
[1746407797467,0.4267444,94592.0,94587.0,0.0613]
[1746407797667,0.2643705,94589.0,94588.0,0.0332]
[1746407797869,0.9743705,94589.0,94588.0,0.0638]
[1746407798358,0.0272276,94590.0,94588.0,0.0638]
[1746407798558,0.2643705,94589.0,94588.0,0.0638]
[1746407798766,0.7143705,94589.0,94588.0,0.0638]
[1746407799165,0.7153705,94589.0,94588.0,0.0638]
[1746407799568,0.05294,94591.0,94588.0,0.0638]
[1746407799768,0.2643705,94589.0,94588.0,0.0638]
[1746407799970,0.9443705,94589.0,94588.0,0.0638]
[1746407800667,0.9453705,94589.0,94588.0,0.0638]
[1746407800869,0.05294,94589.0,94588.0,0.0638]
[1746407801064,0.7143705,94589.0,94588.0,0.0638]
[1746407802065,0.91882306,94589.0,94588.0,0.0638]
[1746407802271,0.32293,94589.0,94588.0,0.0638]
[1746407802569,0.8543605,94589.0,94588.0,0.0638]
[1746407803771,0.8563605,94589.0,94588.0,0.0638]
[1746407806173,0.8563605,94589.0,94588.0,0.1838]
[1746407806765,0.8543605,94589.0,94588.0,0.1838]
[1746407806974,0.8563605,94589.0,94588.0,0.1838]
[1746407807267,0.8563605,94589.0,94588.0,0.0638]
[1746407807472,0.8553605,94589.0,94588.0,0.0638]
[1746407811064,0.8553605,94589.0,94588.0,0.1838]
[1746407813977,0.05293,94582.0,94572.0,0.34402609]
[1746407814167,0.2114662,94573.0,94572.0,0.34402609]
[1746407814372,0.8514662,94573.0,94572.0,0.34402609]
[1746407814775,0.2114953,94560.0,94555.0,0.2115052]
[1746407814977,0.7014953,94560.0,94555.0,0.2115052]
[1746407815176,0.7014953,94560.0,94559.0,0.69234]
[1746407815482,0.7004953,94560.0,94559.0,0.69234]
[1746407816777,0.7004953,94560.0,94559.0,0.69534]
[1746407819370,0.74421492,94560.0,94559.0,0.69534]